[Event "WALTON 40th BAN-ch U20 Girls 2022"]
[Site "Dhaka"]
[Date "2022.02.22"]
[Round "8.4"]
[White "Nusrat Jahan, Alo"]
[Black "Tasnia Tarannum, Orpa"]
[Result "0-1"]
[ECO "B15"]
[WhiteElo "1818"]
[BlackElo "1678"]
[Annotator "NA RC"]
[PlyCount "146"]
[EventDate "2022.02.15"]
[EventType "swiss"]
[EventCountry "BAN"]
[SourceTitle "playchess.com"]
[Source "ChessBase"]
[SourceQuality "1"]
[TimeControl "5400+30"]

1. e4 {[%emt 0:00:06]} c6 {[%emt 0:00:02]} 2. d4 {[%emt 0:00:12]} d5 {[%emt 0:00:04]} 3. Nc3 {[%emt 0:00:06]} dxe4 {[%emt 0:00:08]} 4. Nxe4 {[%emt 0:00:07]} Nf6 {[%emt 0:00:04]} 5. Nxf6+ {[%emt 0:00:07]} exf6 {[%emt 0:00:02]} 6. Be3 {[%emt 0:00:24]} Bd6 {[%emt 0:01:37]} 7. Nf3 {[%emt 0:00:54]} O-O {[%emt 0:01:46]} 8. Be2 {[%emt 0:00:47]} Nd7 {[%emt 0:03:04]} 9. O-O {[%emt 0:00:47]} Re8 {[%emt 0:00:19]} 10. Re1 {[%emt 0:03:05]} Nf8 {[%emt 0:00:06]} 11. c3 {[%emt 0:00:40]} Qc7 {[%emt 0:00:50]} 12. Qc2 {[%emt 0:02:55]} Bg4 {[%emt 0:09:43]} 13. h3 {[%emt 0:01:19]} Be6 {[%emt 0:00:07]} 14. Rad1 {[%emt 0:05:27]} Rac8 {[%emt 0:02:21]} 15. b3 {[%emt 0:03:09]} Qd7 {[%emt 0:03:21]} 16. Bf1 {[%emt 0:05:59]} Bf5 {[%emt 0:01:02]} 17. Qb2 {[%emt 0:01:32]} Bb8 {[%emt 0:04:50]} 18. c4 {[%emt 0:07:43]} Be5 {[%emt 0:00:30]} 19. Nd2 {[%emt 0:03:07]} Qc7 {[%emt 0:06:35]} 20. g3 {[%emt 0:05:00]} Be4 {[%emt 0:07:32]} 21. Bg2 {[%emt 0:00:30]} Qd7 {[%emt 0:00:30]} 22. Kh2 {[%emt 0:00:30]} h5 {[%emt 0:00:30]} 23. Nf3 {[%emt 0:14:29]} Bb8 24. Ne5 {[%emt 0:43:35]} fxe5 {[%emt 0:11:04]} 25. Bxe4 {[%emt 0:00:30]} Qe7 {[%emt 0:46:53]} 26. dxe5 {[%emt 0:00:00]} h4 {[%emt 0:00:00]} 27. Bd4 {[%emt 0:00:00]} Ne6 {[%emt 0:00:00]} 28. Bc3 $1 {[%emt 0:00:00]} hxg3+ {[%emt 0:00:00]} 29. fxg3 {[%emt 0:00:00]} Rcd8 {[%emt 0:00:00]} 30. Bg2 {[%emt 0:00:00]} (30. Qe2 $16) 30... Rd7 {[%emt 0:00:00]} (30... Bc7 $14) 31. Rxd7 {[%emt 0:00:00]} Qxd7 {[%emt 0:00:00]} 32. Qc1 {[%emt 0:00:00]} Rd8 {[%emt 0:00:00]} 33. Bf3 {[%emt 0:00:00]} Qe7 {[%emt 0:00:00]} 34. h4 {[%emt 0:00:00]} Qc5 {[%emt 0:00:00]} 35. Kg2 {[%emt 0:00:00]} a6 {[%emt 0:00:00] [#]} (35... Bc7 $14) 36. Qe3 {[%emt 0:00:00]} (36. Bh5 $1 $16) 36... Qe7 {[%emt 0:00:00]} (36... Qxe3 $142 37. Rxe3 Ba7) 37. Ba5 {[%emt 0:00:00]} Re8 {[%emt 0:00:00]} 38. Bc3 {[%emt 0:00:00]} Rd8 $1 {[%emt 0:00:00]} 39. Ba5 {[%emt 0:00:00]} ({Better is} 39. Be4 $16) 39... Re8 $1 {[%emt 0:00:00]} 40. Bg4 {[%emt 0:00:00]} Nf8 {[%emt 0:00:00]} 41. Bc3 {[%emt 0:00:00]} Bc7 {[%emt 0:00:00]} 42. c5 {[%emt 0:00:00]} Bb8 {[%emt 0:00:00]} 43. b4 {[%emt 0:00:00]} Bc7 {[%emt 0:00:00]} 44. Qd4 {[%emt 0:00:00]} Rd8 {[%emt 0:00:00]} 45. Qe4 {[%emt 0:00:00]} Re8 {[%emt 0:00:00]} (45... a5 $16) 46. a4 {[%emt 0:00:00]} Bb8 {[%emt 0:00:00]} (46... a5 $16 {keeps fighting.} 47. bxa5 Qxc5) 47. Qc4 {[%emt 0:00:00]} (47. e6 $142 fxe6 48. Bh5) 47... Qc7 {[%emt 0:01:41]} 48. b5 $2 {[%emt 0:00:18]} (48. Bf5 $18) 48... cxb5 {[%emt 0:03:49]} 49. axb5 {[%emt 0:00:08]} b6 $2 {[%emt 0:02:00]} (49... axb5 $16 50. Qxb5 Qc6+ 51. Qxc6 bxc6) 50. c6 {[%emt 0:00:21]} (50. bxa6 $142 Ne6 51. c6) 50... axb5 {[%emt 0:01:25]} 51. Qxb5 {[%emt 0:00:01]} Ne6 {[%emt 0:01:01]} 52. Rd1 {[%emt 0:01:30]} Nd8 $2 {[%emt 0:01:28]} (52... Rd8 53. Rxd8+ Qxd8) 53. Bd7 {[%emt 0:00:20]} Re7 $18 {[%emt 0:00:20]} 54. Qd5 {[%emt 0:00:54]} Ne6 {[%emt 0:02:07]} 55. Qb5 {[%emt 0:05:20]} Nc5 {[%emt 0:00:26]} 56. Bb2 {[%emt 0:02:20]} Rxe5 {[%emt 0:00:21]} 57. Bxe5 {[%emt 0:00:11]} Qxe5 {[%emt 0:00:02]} 58. Kf1 {[%emt 0:03:09]} Qxg3 {[%emt 0:00:07]} 59. Qe2 {[%emt 0:00:54]} Qf4+ {[%emt 0:00:52]} 60. Qf2 {[%emt 0:00:20]} Qc4+ {[%emt 0:00:30]} 61. Qe2 {[%emt 0:01:17]} Qf4+ {[%emt 0:00:39]} 62. Kg1 {[%emt 0:00:39]} Qg3+ {[%emt 0:00:18]} 63. Qg2 {[%emt 0:00:16]} Qe3+ {[%emt 0:00:57]} 64. Kh1 {[%emt 0:00:09]} Ne4 {[%emt 0:00:27]} 65. Qg4 {[%emt 0:01:19]} Nf2+ {[%emt 0:00:09]} 66. Kg2 {[%emt 0:00:07]} Nxg4 {[%emt 0:00:07]} 67. Bxg4 {[%emt 0:00:05]} Qg3+ {[%emt 0:00:08]} 68. Kf1 {[%emt 0:00:05]} Qxg4 {[%emt 0:00:21]} 69. Rd7 {[%emt 0:00:23]} Qxd7 {[%emt 0:00:42]} 70. cxd7 {[%emt 0:00:08]} Bc7 {[%emt 0:00:01]} 71. Ke2 {[%emt 0:00:10]} Kf8 {[%emt 0:00:05]} 72. Kd3 {[%emt 0:00:05]} Ke7 {[%emt 0:00:04]} 73. Kd4 {[%emt 0:00:06]} Kxd7 {[%emt 0:00:06]} 0-1

[Event "WALTON 40th BAN-ch U20 Girls 2022"]
[Site "Dhaka"]
[Date "2022.02.22"]
[Round "8.5"]
[White "Wadifa, Ahmed"]
[Black "Shimon, Ahmed"]
[Result "1-0"]
[ECO "B44"]
[WhiteElo "1786"]
[BlackElo "1203"]
[Annotator "NA"]
[PlyCount "53"]
[EventDate "2022.02.15"]
[EventType "swiss"]
[EventCountry "BAN"]
[SourceTitle "playchess.com"]
[Source "ChessBase"]
[SourceQuality "1"]
[TimeControl "5400+30"]

1. e4 {[%emt 0:00:02]} c5 {[%emt 0:31:57]} 2. Nf3 {[%emt 0:00:19]} Nc6 {[%emt 0:00:04]} 3. d4 {[%emt 0:00:22]} cxd4 {[%emt 0:00:43]} 4. Nxd4 {[%emt 0:00:02]} e6 {[%emt 0:00:15]} 5. Be3 {[%emt 0:00:33]} Nf6 {[%emt 0:00:59]} 6. Bd3 {[%emt 0:00:53]} e5 {[%emt 0:02:07]} 7. Nb3 {[%emt 0:00:51]} d5 {[%emt 0:00:33]} 8. exd5 {[%emt 0:15:20]} Nxd5 {[%emt 0:00:19]} 9. O-O {[%emt 0:04:36]} Nxe3 {[%emt 0:03:06]} 10. fxe3 {[%emt 0:00:08]} Be6 {[%emt 0:01:03]} 11. Nc3 {[%emt 0:02:12]} Qb6 {[%emt 0:01:31]} 12. Qf3 {[%emt 0:01:28]} Nb4 {[%emt 0:02:58]} 13. Bb5+ {[%emt 0:01:54]} Nc6 {[%emt 0:01:05]} 14. Nd5 {[%emt 0:08:17]} Qd8 {[%emt 0:01:13]} 15. Rad1 {[%emt 0:00:26]} Bd6 {[%emt 0:02:12]} 16. Bxc6+ {[%emt 0:03:30]} bxc6 {[%emt 0:00:15]} 17. Nc3 {[%emt 0:02:37]} Rc8 {[%emt 0:01:08]} 18. Ne4 {[%emt 0:00:15]} Bd5 {[%emt 0:00:38]} 19. Rxd5 {[%emt 0:00:20]} O-O {[%emt 0:01:12]} 20. Rxd6 {[%emt 0:00:37]} Qe7 {[%emt 0:00:43]} 21. Rfd1 {[%emt 0:01:24]} Rcd8 {[%emt 0:01:54]} 22. Rxc6 {[%emt 0:03:22]} Rc8 {[%emt 0:01:08]} 23. Rxc8 {[%emt 0:02:50]} Rxc8 {[%emt 0:00:09]} 24. Nd6 {[%emt 0:01:03]} Rxc2 {[%emt 0:01:08]} 25. Nxf7 {[%emt 0:00:20]} Qf6 {[%emt 0:01:02]} 26. Nh6+ {[%emt 0:02:40]} Kh8 {[%emt 0:00:14]} 27. Qa8+ {[%emt 0:00:11]} 1-0

[Event "WALTON 40th BAN-ch U20 Girls 2022"]
[Site "Dhaka"]
[Date "2022.02.23"]
[Round "9.2"]
[White "Tasfia, Tahsin Prima"]
[Black "Kazi Zarin, Tasnim"]
[Result "1-0"]
[ECO "C64"]
[WhiteElo "1423"]
[BlackElo "1801"]
[Annotator "NA RC"]
[PlyCount "84"]
[EventDate "2022.02.15"]
[EventType "swiss"]
[EventCountry "BAN"]
[SourceTitle "playchess.com"]
[Source "ChessBase"]
[SourceQuality "1"]
[TimeControl "5400+30"]

{[%evp 8,84,39,35,38,50,60,64,58,55,64,60,100,96,112,122,127,121,113,111,118,130,133,99,104,111,171,164,172,167,211,189,181,195,199,206,223,217,249,241,419,395,412,422,504,534,585,646,935,751,890,927,920,945,1416,1572,2470,2798,6548,5722,29978,5631,2133,1839,2330,5685,5729,5117,5302,29979,32767,32767,32767,7241,29988,29989,29994,29992,29992]} 1. e4 {[%emt 0:00:30]} e5 {[%emt 0:14:00]} 2. Nf3 {[%emt 0:01:35]} Nc6 {[%emt 0:00:06]} 3. Bb5 {[%emt 0:04:12]} a6 {[%emt 0:02:20]} 4. Ba4 {[%emt 0:00:55]} Bc5 {[%emt 0:00:22]} 5. O-O {[%emt 0:00:41]} Nge7 {[%emt 0:03:00] [#]} 6. c3 {[%emt 0:01:38]} (6. Nxe5 $1 $16 Nxe5 7. d4) 6... b5 {[%emt 0:01:43]} 7. Bc2 {[%emt 0:00:53]} d6 {[%emt 0:02:54]} 8. d4 {[%emt 0:01:04]} Bb6 {[%emt 0:01:09]} 9. a4 {[%emt 0:03:00]} Bb7 {[%emt 0:00:55]} (9... bxa4 $14 {is superior.} 10. d5 (10. Rxa4 exd4 11. cxd4 a5 $11) (10. Bxa4 O-O $14) 10... Nb8) 10. d5 {[%emt 0:01:10]} Nb8 {[%emt 0:01:39]} 11. axb5 {[%emt 0:01:51]} axb5 {[%emt 0:00:11]} 12. Rxa8 {[%emt 0:03:50]} Bxa8 {[%emt 0:00:02]} 13. Na3 {[%emt 0:01:07]} c6 {[%emt 0:09:12]} 14. dxc6 {[%emt 0:01:23]} Bxc6 {[%emt 0:00:02]} 15. Qd3 {[%emt 0:01:51]} Qd7 {[%emt 0:00:54]} 16. Rd1 {[%emt 0:01:27]} Bc7 {[%emt 0:00:19]} (16... O-O $16 {was worth a try.}) 17. Qe2 {[%emt 0:01:36]} Ng6 {[%emt 0:01:53]} 18. Bd3 {[%emt 0:02:08]} Na6 {[%emt 0:01:38]} (18... b4 $142) 19. Bxb5 {[%emt 0:00:45]} Nc5 {[%emt 0:00:51]} 20. Qc4 {[%emt 0:01:19]} Bxb5 {[%emt 0:03:13]} 21. Nxb5 {[%emt 0:01:36]} Bb8 {[%emt 0:00:06]} 22. Ng5 {[%emt 0:01:49]} h6 {[%emt 0:04:09] [#]} 23. Be3 $1 {[%emt 0:05:25]} Nb7 $2 {[%emt 0:08:10] [#]} (23... O-O 24. Nxd6 (24. Bxc5 Qg4 $16) 24... hxg5) 24. Nxf7 $1 {[%emt 0:01:53]} Rf8 {[%emt 0:02:37] [#]} 25. Ba7 $1 {[%emt 0:02:55]} Rxf7 {[%emt 0:15:51]} (25... Bxa7 $2 26. Nfxd6+ Nxd6 27. Nxd6+ Kd8 28. Nb7+ Ke8 29. Nd6+ Kd8 30. Nb7+ Ke8 31. Rxd7 $18) 26. Bxb8 {[%emt 0:00:39]} Rf6 {[%emt 0:00:01]} 27. Qg8+ {[%emt 0:01:28]} Nf8 {[%emt 0:00:31]} 28. Qd5 {[%emt 0:00:38]} Ke7 {[%emt 0:02:16]} 29. Bc7 {[%emt 0:01:13]} Ne6 {[%emt 0:08:23]} 30. Qxb7 {[%emt 0:00:46]} Nc5 {[%emt 0:00:04]} 31. Qd5 {[%emt 0:00:38]} Nxe4 {[%emt 0:02:11]} 32. f3 {[%emt 0:02:19]} Rg6 {[%emt 0:05:23]} 33. Qxe4 {[%emt 0:02:10]} (33. fxe4 $142 Qe6 34. Qa8 Rxg2+ 35. Kxg2 Qg4+ 36. Kf2 Qh4+ 37. Ke2 Qg4+ 38. Kd2) 33... Rg5 {[%emt 0:01:51]} 34. Bxd6+ {[%emt 0:01:18]} Kf7 {[%emt 0:00:52]} 35. Qd5+ {[%emt 0:00:51]} Kg6 {[%emt 0:00:08]} 36. h4 {[%emt 0:03:59]} Rh5 {[%emt 0:04:38]} 37. Qe4+ {[%emt 0:00:48]} (37. Nc7 $142 Qa4 38. Ne6 Rf5 39. g4 Rf6 40. Bxe5 Qxd1+ 41. Qxd1 Rxe6 42. Qd3+ Kf7 43. Qf5+ Ke7 44. Bxg7 Re1+ 45. Kf2) 37... Kf7 {[%emt 0:00:32]} 38. Qc4+ {[%emt 0:01:17]} Kg6 {[%emt 0:00:40]} 39. Qe4+ {[%emt 0:00:06]} Kf7 {[%emt 0:00:07]} 40. Rd5 {[%emt 0:00:02]} Qb7 {[%emt 0:02:35]} 41. Bxe5 {[%emt 0:00:41]} Qa6 {[%emt 0:02:39]} 42. Nd6+ {[%emt 0:02:55]} Kg8 {[%emt 0:01:23]} 1-0

[Event "WALTON 40th BAN-ch U20 Girls 2022"]
[Site "Dhaka"]
[Date "2022.02.23"]
[Round "9.3"]
[White "Jannatul, Ferdous"]
[Black "Alizah, Nusaiba Islam"]
[Result "1-0"]
[ECO "D02"]
[WhiteElo "1852"]
[BlackElo "1150"]
[Annotator "NA RC"]
[PlyCount "55"]
[EventDate "2022.02.15"]
[EventType "swiss"]
[EventCountry "BAN"]
[SourceTitle "playchess.com"]
[Source "ChessBase"]
[SourceQuality "1"]
[TimeControl "5400+30"]

{[%evp 8,54,21,13,20,1,17,-2,12,12,6,-13,-1,0,48,32,209,92,167,147,179,91,146,120,264,256,258,221,412,450,485,494,491,514,554,434,512,733,1272,1572,29988,29990,29990,29991,29997,29998,29998,29999,29999]} 1. Nf3 {[%emt 0:00:09]} Nc6 {[%emt 0:16:50]} 2. d4 {[%emt 0:00:06]} d5 {[%emt 0:01:18]} 3. Bf4 {[%emt 0:00:04]} e6 {[%emt 0:01:19]} 4. e3 {[%emt 0:00:14]} Nf6 {[%emt 0:02:48]} 5. c3 {[%emt 0:00:29]} Bd6 {[%emt 0:01:01]} 6. Bg3 {[%emt 0:00:03]} O-O {[%emt 0:01:04]} 7. Bd3 {[%emt 0:00:07]} Ne4 {[%emt 0:02:16]} 8. Nbd2 {[%emt 0:00:48]} f5 {[%emt 1:07:54]} 9. Ne5 {[%emt 0:00:42]} Qf6 {[%emt 0:00:00]} 10. f4 {[%emt 0:01:25]} g5 {[%emt 0:00:00]} ({Better is} 10... Qd8 $11) 11. Qe2 {[%emt 0:03:11]} g4 $2 {[%emt 0:00:00]} (11... Qg7 $11) 12. Bb5 {[%emt 0:06:52]} (12. Bxe4 $18 fxe4 13. h3 (13. Nxg4 Qg6 $16) (13. Qxg4+ Qg7 $16)) 12... a6 {[%emt 0:00:00]} (12... Nxg3 $16 13. hxg3 Ne7) 13. Bxc6 {[%emt 0:00:39]} ({White should play} 13. Nxe4 $18 fxe4 14. Qxg4+ (14. Bxc6 bxc6 15. Qxg4+ Qg7 $16) 14... Qg7 15. Qxg7+ (15. Bxc6 Bxe5 16. Qxg7+ Bxg7 $16) 15... Kxg7 16. Bxc6 (16. Nxc6 axb5 17. Ne5 b4 $14) 16... bxc6 17. Nxc6) 13... bxc6 {[%emt 0:00:00]} (13... Nxg3 $16 14. hxg3 bxc6) 14. Nxc6 {[%emt 0:00:05]} Bd7 {[%emt 0:00:00]} (14... Nxd2 $142 15. Qxd2 (15. Kxd2 Qg6 $16) 15... h5) 15. Ne5 {[%emt 0:00:10]} Rfd8 {[%emt 0:00:00]} (15... Bxe5 $16 16. Nxe4 (16. fxe5 Qg6 $16) (16. dxe5 Qh6 $16) 16... Qg6) 16. Nxe4 {[%emt 0:00:59]} dxe4 {[%emt 0:00:00]} 17. Qf2 {[%emt 0:00:26]} Be7 $2 {[%emt 0:00:00]} (17... Qg7 18. Bh4 Rdc8) 18. h3 {[%emt 0:02:34]} Qh6 {[%emt 0:00:00]} 19. O-O-O {[%emt 0:01:25]} Qg7 {[%emt 0:00:00]} 20. hxg4 {[%emt 0:00:32]} fxg4 {[%emt 0:00:00]} 21. Qe2 {[%emt 0:00:04]} Kh8 {[%emt 0:00:00]} 22. Bh4 {[%emt 0:07:11]} g3 {[%emt 0:00:00]} 23. Bxe7 {[%emt 0:01:05]} Qxe7 {[%emt 0:00:00]} 24. Ng6+ {[%emt 0:00:02]} Kg7 {[%emt 0:00:00]} 25. Nxe7 {[%emt 0:00:03]} Kf7 {[%emt 0:00:00]} 26. Rxh7+ {[%emt 0:00:02]} Kf6 {[%emt 0:00:00]} 27. Qh5 {[%emt 0:00:04]} Rg8 {[%emt 0:00:00]} 28. Qf7# {[%emt 0:00:11]} 1-0

[Event "WALTON 40th BAN-ch U20 Girls 2022"]
[Site "Dhaka"]
[Date "2022.02.23"]
[Round "9.4"]
[White "Israt, Jahan Diba"]
[Black "Wadifa, Ahmed"]
[Result "1/2-1/2"]
[ECO "B00"]
[WhiteElo "1697"]
[BlackElo "1786"]
[Annotator "NA RC"]
[PlyCount "71"]
[EventDate "2022.02.15"]
[EventType "swiss"]
[EventCountry "BAN"]
[SourceTitle "playchess.com"]
[Source "ChessBase"]
[SourceQuality "1"]
[TimeControl "5400+30"]

1. e4 {[%emt 0:00:03]} b6 {[%emt 0:07:54]} 2. d4 {[%emt 0:00:24]} Bb7 {[%emt 0:00:07]} 3. Nf3 {[%emt 0:00:12]} Bxe4 {[%emt 0:00:11]} 4. Nc3 {[%emt 0:00:10]} Bb7 {[%emt 0:00:21]} 5. Bf4 {[%emt 0:00:50]} Nf6 {[%emt 0:02:12]} 6. Bc4 {[%emt 0:02:47]} e6 {[%emt 0:01:05]} 7. d5 {[%emt 0:06:33]} Bb4 {[%emt 0:06:36]} 8. dxe6 {[%emt 0:02:42]} fxe6 {[%emt 0:00:14]} 9. O-O {[%emt 0:13:55]} O-O {[%emt 0:00:13]} 10. Ng5 {[%emt 0:01:50]} Nc6 {[%emt 0:15:40]} 11. Nb5 {[%emt 0:04:50]} h6 {[%emt 0:16:29]} 12. Nxe6 {[%emt 0:14:15]} dxe6 {[%emt 0:01:04]} 13. Nxc7 {[%emt 0:00:50]} Kh8 {[%emt 0:06:41]} 14. Qxd8 {[%emt 0:10:14]} Rfxd8 {[%emt 0:04:59]} 15. Nxa8 {[%emt 0:02:57]} Bxa8 {[%emt 0:00:39]} 16. c3 {[%emt 0:04:28]} e5 {[%emt 0:03:38]} 17. Be3 {[%emt 0:01:16]} Be7 {[%emt 0:00:30]} 18. Rad1 {[%emt 0:00:55]} Rf8 {[%emt 0:01:30]} 19. Be6 {[%emt 0:02:30]} e4 {[%emt 0:01:45]} 20. Bf4 {[%emt 0:02:30]} Nh5 {[%emt 0:03:37]} 21. Be3 {[%emt 0:02:02]} Ne5 {[%emt 0:01:29]} 22. Bd5 {[%emt 0:02:08]} Nd3 {[%emt 0:02:03]} 23. Bxa8 {[%emt 0:00:46]} Rxa8 {[%emt 0:00:04]} 24. f3 {[%emt 0:02:22]} Nxb2 {[%emt 0:03:56]} 25. Rd7 {[%emt 0:01:18]} Bf8 {[%emt 0:00:02]} 26. fxe4 {[%emt 0:00:31]} Nf6 {[%emt 0:00:08]} 27. Rf7 {[%emt 0:01:13]} Kg8 {[%emt 0:02:29]} 28. Rc7 {[%emt 0:03:08]} Bd6 {[%emt 0:04:00]} 29. Rb7 {[%emt 0:05:23]} Nc4 {[%emt 0:00:12]} 30. Bxh6 {[%emt 0:00:51]} Bc5+ {[%emt 0:08:32]} 31. Kh1 {[%emt 0:00:21]} gxh6 {[%emt 0:03:01]} 32. Rxf6 {[%emt 0:00:08]} Rd8 {[%emt 0:00:44]} 33. Rg6+ {[%emt 0:04:52]} Kf8 {[%emt 0:00:02]} 34. Rf6+ {[%emt 0:00:11]} Kg8 {[%emt 0:00:07]} 35. Rg6+ {[%emt 0:03:49]} Kf8 {[%emt 0:00:09]} 36. Rf6+ {[%emt 0:01:54]} 1/2-1/2